[Event "Titled Tuesday Blitz April 18 Late 2023"]
[White "Przybylski, Wojciech"]
[Black "Matinian, Nikita"]
[WhiteFideId "1117599"]
[BlackFideId "24129100"]
[WhiteElo "2222"]
[BlackElo "2422"]
[Result "0-1"]
[Round "09"]
[TimeControl "180+2"]
[Date "2023.04.18"]
[WhiteClock "0:00:01"]
[BlackClock "0:00:08"]

1. e4 {[%clk 0:02:57]}  c5 {[%clk 0:02:59]} 2. Nf3 {[%clk 0:02:56]}  e6 {[%clk 0:02:59]} 3. b3 {[%clk 0:02:56]}  b6 {[%clk 0:02:58]} 4. Bb2 {[%clk 0:02:55]}  Bb7 {[%clk 0:02:58]} 5. Qe2 {[%clk 0:02:55]}  Nf6 {[%clk 0:02:58]} 6. e5 {[%clk 0:02:55]}  Nd5 {[%clk 0:02:58]} 7. Nc3 {[%clk 0:02:56]}  Be7 {[%clk 0:02:44]} 8. O-O-O {[%clk 0:02:54]}  O-O {[%clk 0:02:41]} 9. h4 {[%clk 0:02:53]}  Nc6 {[%clk 0:02:33]} 10. h5 {[%clk 0:02:46]}  a5 {[%clk 0:02:26]} 11. a4 {[%clk 0:02:43]}  Ncb4 {[%clk 0:02:24]} 12. Nb5 {[%clk 0:02:37]}  f5 {[%clk 0:02:10]} 13. h6 {[%clk 0:02:30]}  g6 {[%clk 0:02:07]} 14. Nd6 {[%clk 0:02:22]}  Ba6 {[%clk 0:02:03]} 15. c4 {[%clk 0:02:21]}  Nf4 {[%clk 0:01:46]} 16. Qe3 {[%clk 0:02:20]}  g5 {[%clk 0:01:46]} 17. d4 {[%clk 0:02:09]}  Ng6 {[%clk 0:01:39]} 18. Kb1 {[%clk 0:01:52]}  g4 {[%clk 0:01:37]} 19. Ne1 {[%clk 0:01:43]}  Bg5 {[%clk 0:01:33]} 20. Qc3 {[%clk 0:01:39]}  cxd4 {[%clk 0:01:17]} 21. Qxd4 {[%clk 0:01:35]}  Nc6 {[%clk 0:01:17]} 22. Qc3 {[%clk 0:01:25]}  Ncxe5 {[%clk 0:01:16]} 23. f4 {[%clk 0:00:42]}  Bxf4 {[%clk 0:01:02]} 24. Nd3 {[%clk 0:00:40]}  Bg3 {[%clk 0:01:02]} 25. Nc5 {[%clk 0:00:28]}  bxc5 {[%clk 0:00:45]} 26. Qxg3 {[%clk 0:00:27]}  f4 {[%clk 0:00:46]} 27. Qc3 {[%clk 0:00:25]}  Qg5 {[%clk 0:00:39]} 28. Ne4 {[%clk 0:00:18]}  Qe7 {[%clk 0:00:35]} 29. Rh5 {[%clk 0:00:14]}  Rf5 {[%clk 0:00:31]} 30. Rxf5 {[%clk 0:00:10]}  exf5 {[%clk 0:00:32]} 31. Nd6 {[%clk 0:00:10]}  Rf8 {[%clk 0:00:27]} 32. Re1 {[%clk 0:00:08]}  Qxd6 {[%clk 0:00:21]} 33. Qxa5 {[%clk 0:00:05]}  Bb7 {[%clk 0:00:20]} 34. Qc3 {[%clk 0:00:04]}  Be4+ {[%clk 0:00:20]} 35. Ka2 {[%clk 0:00:05]}  f3 {[%clk 0:00:18]} 36. gxf3 {[%clk 0:00:04]}  gxf3 {[%clk 0:00:18]} 37. Qc1 {[%clk 0:00:03]}  f2 {[%clk 0:00:14]} 38. Rd1 {[%clk 0:00:03]}  Qe7 {[%clk 0:00:10]} 39. Qe3 {[%clk 0:00:02]}  Ng4 {[%clk 0:00:09]} 40. Qc3 {[%clk 0:00:02]}  Rf6 {[%clk 0:00:09]} 41. Qd2 {[%clk 0:00:02]}  d6 {[%clk 0:00:08]} 42. Bxf6 {[%clk 0:00:01]}  Qxf6 {[%clk 0:00:08]} 0-1


[Site "https://www.chess.com"]

[Event "Titled Tuesday Blitz April 18 Late 2023"]
[White "Petrovic, Aleksa"]
[Black "Kozin, Yuri"]
[WhiteFideId "967629"]
[BlackFideId "4129920"]
[WhiteElo "2309"]
[BlackElo "2618"]
[Result "1-0"]
[Round "09"]
[TimeControl "180+2"]
[Date "2023.04.18"]
[WhiteClock "0:00:09"]
[BlackClock "0:00:05"]

1. d4 {[%clk 0:02:55]}  d5 {[%clk 0:03:00]} 2. c4 {[%clk 0:02:54]}  c6 {[%clk 0:03:00]} 3. Nc3 {[%clk 0:02:53]}  Nf6 {[%clk 0:03:00]} 4. e3 {[%clk 0:02:54]}  Bf5 {[%clk 0:03:00]} 5. cxd5 {[%clk 0:02:53]}  cxd5 {[%clk 0:03:00]} 6. Qb3 {[%clk 0:02:54]}  Bc8 {[%clk 0:03:00]} 7. Nf3 {[%clk 0:02:52]}  e6 {[%clk 0:03:00]} 8. Bb5+ {[%clk 0:02:50]}  Nbd7 {[%clk 0:02:49]} 9. O-O {[%clk 0:02:24]}  Bd6 {[%clk 0:02:48]} 10. Ne5 {[%clk 0:02:23]}  O-O {[%clk 0:02:30]} 11. f4 {[%clk 0:02:21]}  a6 {[%clk 0:02:09]} 12. Bd3 {[%clk 0:02:19]}  b5 {[%clk 0:02:03]} 13. Bd2 {[%clk 0:02:18]}  b4 {[%clk 0:02:00]} 14. Ne2 {[%clk 0:02:09]}  a5 {[%clk 0:02:01]} 15. Be1 {[%clk 0:02:04]}  Ba6 {[%clk 0:01:59]} 16. Bh4 {[%clk 0:01:57]}  Bxd3 {[%clk 0:01:54]} 17. Qxd3 {[%clk 0:01:58]}  Qb6 {[%clk 0:01:40]} 18. Rac1 {[%clk 0:01:37]}  Rac8 {[%clk 0:01:39]} 19. Ng3 {[%clk 0:01:30]}  g6 {[%clk 0:01:21]} 20. Bxf6 {[%clk 0:01:14]}  Nxf6 {[%clk 0:01:20]} 21. h4 {[%clk 0:01:10]}  a4 {[%clk 0:01:00]} 22. h5 {[%clk 0:01:05]}  Kg7 {[%clk 0:01:00]} 23. Kf2 {[%clk 0:00:54]}  b3 {[%clk 0:00:59]} 24. a3 {[%clk 0:00:49]}  Qb7 {[%clk 0:00:40]} 25. Kf3 {[%clk 0:00:45]}  Rb8 {[%clk 0:00:34]} 26. Rh1 {[%clk 0:00:38]}  Rfc8 {[%clk 0:00:28]} 27. hxg6 {[%clk 0:00:29]}  hxg6 {[%clk 0:00:28]} 28. f5 {[%clk 0:00:23]}  Rxc1 {[%clk 0:00:20]} 29. Rxc1 {[%clk 0:00:21]}  Bxe5 {[%clk 0:00:20]} 30. dxe5 {[%clk 0:00:20]}  d4+ {[%clk 0:00:20]} 31. e4 {[%clk 0:00:18]}  Nd7 {[%clk 0:00:19]} 32. Qxd4 {[%clk 0:00:17]}  exf5 {[%clk 0:00:15]} 33. Kf4 {[%clk 0:00:14]}  Re8 {[%clk 0:00:13]} 34. e6+ {[%clk 0:00:13]}  Nf6 {[%clk 0:00:12]} 35. exf5 {[%clk 0:00:10]}  fxe6 {[%clk 0:00:10]} 36. Kg5 {[%clk 0:00:08]}  e5 {[%clk 0:00:08]} 37. Qd6 {[%clk 0:00:08]}  Qe7 {[%clk 0:00:08]} 38. Qxe7+ {[%clk 0:00:07]}  Rxe7 {[%clk 0:00:09]} 39. fxg6 {[%clk 0:00:08]}  Rd7 {[%clk 0:00:08]} 40. Nf5+ {[%clk 0:00:07]}  Kf8 {[%clk 0:00:08]} 41. Rc8+ {[%clk 0:00:08]}  Ne8 {[%clk 0:00:07]} 42. g7+ {[%clk 0:00:08]}  Kf7 {[%clk 0:00:06]} 43. Rxe8 {[%clk 0:00:09]}  Kxe8 {[%clk 0:00:05]} 44. g8=Q# {[%clk 0:00:09]} 1-0


[Site "https://www.chess.com"]

[Event "Titled Tuesday Blitz April 18 Late 2023"]
[White "Mikhalsky, Vladimir"]
[Black "Pinheiro, Iung Alicio de O."]
[WhiteFideId "14144352"]
[BlackFideId "2104350"]
[WhiteElo "2236"]
[BlackElo "2283"]
[Result "0-1"]
[Round "09"]
[TimeControl "180+2"]
[Date "2023.04.18"]
[WhiteClock "0:00:03"]
[BlackClock "0:00:08"]

1. d4 {[%clk 0:02:45]}  Nf6 {[%clk 0:02:57]} 2. c4 {[%clk 0:02:44]}  Nc6 {[%clk 0:02:57]} 3. Nc3 {[%clk 0:02:39]}  e5 {[%clk 0:02:54]} 4. d5 {[%clk 0:02:36]}  Ne7 {[%clk 0:02:54]} 5. b3 {[%clk 0:02:35]}  Ng6 {[%clk 0:02:52]} 6. Bb2 {[%clk 0:02:35]}  Bc5 {[%clk 0:02:44]} 7. e3 {[%clk 0:02:34]}  a5 {[%clk 0:02:40]} 8. Qc2 {[%clk 0:02:25]}  d6 {[%clk 0:02:39]} 9. h3 {[%clk 0:02:22]}  Bd7 {[%clk 0:02:20]} 10. a3 {[%clk 0:02:11]}  c6 {[%clk 0:02:11]} 11. dxc6 {[%clk 0:02:01]}  bxc6 {[%clk 0:02:04]} 12. Nf3 {[%clk 0:02:01]}  Ba7 {[%clk 0:01:59]} 13. Rd1 {[%clk 0:01:50]}  Qe7 {[%clk 0:01:51]} 14. a4 {[%clk 0:01:46]}  Bc5 {[%clk 0:01:48]} 15. Nd2 {[%clk 0:01:41]}  d5 {[%clk 0:01:36]} 16. cxd5 {[%clk 0:01:40]}  cxd5 {[%clk 0:01:36]} 17. Bb5 {[%clk 0:01:31]}  Rc8 {[%clk 0:01:32]} 18. O-O {[%clk 0:01:26]}  O-O {[%clk 0:01:31]} 19. Bxd7 {[%clk 0:01:17]}  Qxd7 {[%clk 0:01:29]} 20. Nc4 {[%clk 0:01:14]}  Bb4 {[%clk 0:01:03]} 21. Nb6 {[%clk 0:01:09]}  Qc6 {[%clk 0:01:00]} 22. Nxc8 {[%clk 0:01:08]}  Rxc8 {[%clk 0:01:01]} 23. Qb1 {[%clk 0:00:51]}  h5 {[%clk 0:00:41]} 24. Nb5 {[%clk 0:00:49]}  Qe6 {[%clk 0:00:36]} 25. Rc1 {[%clk 0:00:41]}  Rd8 {[%clk 0:00:36]} 26. Bc3 {[%clk 0:00:35]}  Ne4 {[%clk 0:00:32]} 27. Bxb4 {[%clk 0:00:32]}  axb4 {[%clk 0:00:33]} 28. Qd3 {[%clk 0:00:24]}  Nh4 {[%clk 0:00:31]} 29. Kh2 {[%clk 0:00:20]}  Qg6 {[%clk 0:00:27]} 30. g3 {[%clk 0:00:19]}  Nf3+ {[%clk 0:00:27]} 31. Kg2 {[%clk 0:00:18]}  Nh4+ {[%clk 0:00:18]} 32. Kh2 {[%clk 0:00:18]}  Nf5 {[%clk 0:00:19]} 33. Qe2 {[%clk 0:00:16]}  d4 {[%clk 0:00:10]} 34. g4 {[%clk 0:00:16]}  hxg4 {[%clk 0:00:09]} 35. Qxg4 {[%clk 0:00:16]}  Qxg4 {[%clk 0:00:08]} 36. hxg4 {[%clk 0:00:16]}  Nh4 {[%clk 0:00:08]} 37. f3 {[%clk 0:00:15]}  Nd2 {[%clk 0:00:07]} 38. exd4 {[%clk 0:00:15]}  Nxf1+ {[%clk 0:00:07]} 39. Rxf1 {[%clk 0:00:14]}  exd4 {[%clk 0:00:08]} 40. Kg3 {[%clk 0:00:14]}  Ng6 {[%clk 0:00:08]} 41. Rd1 {[%clk 0:00:14]}  d3 {[%clk 0:00:08]} 42. f4 {[%clk 0:00:14]}  Ne7 {[%clk 0:00:08]} 43. Kf3 {[%clk 0:00:13]}  Nc6 {[%clk 0:00:08]} 44. Ke4 {[%clk 0:00:11]}  d2 {[%clk 0:00:08]} 45. Ke3 {[%clk 0:00:11]}  Re8+ {[%clk 0:00:07]} 46. Kxd2 {[%clk 0:00:11]}  Na5 {[%clk 0:00:08]} 47. Kc2 {[%clk 0:00:10]}  Re2+ {[%clk 0:00:08]} 48. Rd2 {[%clk 0:00:10]}  Re3 {[%clk 0:00:09]} 49. Nd4 {[%clk 0:00:10]}  Rc3+ {[%clk 0:00:09]} 50. Kb2 {[%clk 0:00:10]}  Rg3 {[%clk 0:00:09]} 51. g5 {[%clk 0:00:10]}  g6 {[%clk 0:00:09]} 52. f5 {[%clk 0:00:10]}  gxf5 {[%clk 0:00:09]} 53. Nxf5 {[%clk 0:00:10]}  Rxb3+ {[%clk 0:00:10]} 54. Kc2 {[%clk 0:00:09]}  Rc3+ {[%clk 0:00:10]} 55. Kd1 {[%clk 0:00:09]}  Rf3 {[%clk 0:00:09]} 56. Rd8+ {[%clk 0:00:08]}  Kh7 {[%clk 0:00:09]} 57. Nd6 {[%clk 0:00:09]}  b3 {[%clk 0:00:09]} 58. Rb8 {[%clk 0:00:08]}  Rd3+ {[%clk 0:00:07]} 59. Ke2 {[%clk 0:00:09]}  Rxd6 {[%clk 0:00:08]} 60. Rb5 {[%clk 0:00:08]}  Ra6 {[%clk 0:00:07]} 61. Kd2 {[%clk 0:00:08]}  Kg6 {[%clk 0:00:07]} 62. Kc3 {[%clk 0:00:08]}  Ra8 {[%clk 0:00:08]} 63. Kb2 {[%clk 0:00:08]}  Ra7 {[%clk 0:00:07]} 64. Ka3 {[%clk 0:00:08]}  Nc6 {[%clk 0:00:07]} 65. Rb6 {[%clk 0:00:08]}  Rc7 {[%clk 0:00:06]} 66. Kxb3 {[%clk 0:00:08]}  Kxg5 {[%clk 0:00:06]} 67. Kb2 {[%clk 0:00:08]}  f5 {[%clk 0:00:07]} 68. Rb5 {[%clk 0:00:07]}  Kg4 {[%clk 0:00:07]} 69. a5 {[%clk 0:00:07]}  Ra7 {[%clk 0:00:05]} 70. Rc5 {[%clk 0:00:07]}  Nxa5 {[%clk 0:00:05]} 71. Rb5 {[%clk 0:00:07]}  Nc6 {[%clk 0:00:05]} 72. Rc5 {[%clk 0:00:07]}  Rb7+ {[%clk 0:00:05]} 73. Kc3 {[%clk 0:00:07]}  Rb6 {[%clk 0:00:06]} 74. Rc4+ {[%clk 0:00:06]}  f4 {[%clk 0:00:06]} 75. Kd2 {[%clk 0:00:06]}  Ne5 {[%clk 0:00:06]} 76. Ra4 {[%clk 0:00:05]}  Kg3 {[%clk 0:00:05]} 77. Ke2 {[%clk 0:00:05]}  f3+ {[%clk 0:00:05]} 78. Ke3 {[%clk 0:00:05]}  Rb3+ {[%clk 0:00:05]} 79. Ke4 {[%clk 0:00:05]}  Ng4 {[%clk 0:00:06]} 80. Kf5 {[%clk 0:00:04]}  Rb5+ {[%clk 0:00:07]} 81. Kg6 {[%clk 0:00:04]}  f2 {[%clk 0:00:07]} 82. Ra3+ {[%clk 0:00:04]}  Kg2 {[%clk 0:00:07]} 83. Ra2 {[%clk 0:00:03]}  Kg1 {[%clk 0:00:07]} 84. Ra1+ {[%clk 0:00:03]}  f1=Q {[%clk 0:00:07]} 85. Rxf1+ {[%clk 0:00:03]}  Kxf1 {[%clk 0:00:08]} 0-1


[Site "https://www.chess.com"]

[Event "Titled Tuesday Blitz April 18 Late 2023"]
[White "cryptoguru02"]
[Black "D`Arruda, Ricardo D."]
[BlackFideId "100692"]
[WhiteElo "2605"]
[BlackElo "2481"]
[Result "1-0"]
[Round "09"]
[TimeControl "180+2"]
[Date "2023.04.18"]
[WhiteClock "0:00:15"]
[BlackClock "0:00:05"]

1. d4 {[%clk 0:03:00]}  Nf6 {[%clk 0:02:59]} 2. c4 {[%clk 0:03:01]}  e5 {[%clk 0:02:59]} 3. dxe5 {[%clk 0:03:00]}  Ne4 {[%clk 0:02:59]} 4. Nf3 {[%clk 0:02:58]}  Nc6 {[%clk 0:02:58]} 5. Nbd2 {[%clk 0:02:54]}  Nc5 {[%clk 0:02:57]} 6. e3 {[%clk 0:02:45]}  d6 {[%clk 0:02:56]} 7. exd6 {[%clk 0:02:35]}  Bxd6 {[%clk 0:02:57]} 8. Be2 {[%clk 0:02:35]}  Bf5 {[%clk 0:02:53]} 9. O-O {[%clk 0:02:34]}  Qf6 {[%clk 0:02:53]} 10. Nb3 {[%clk 0:02:26]}  O-O-O {[%clk 0:02:53]} 11. Nxc5 {[%clk 0:02:19]}  Bxc5 {[%clk 0:02:53]} 12. Nd4 {[%clk 0:02:04]}  Nxd4 {[%clk 0:02:48]} 13. exd4 {[%clk 0:02:04]}  Qxd4 {[%clk 0:02:48]} 14. Qb3 {[%clk 0:01:53]}  Qf6 {[%clk 0:02:31]} 15. Be3 {[%clk 0:01:29]}  Bd4 {[%clk 0:01:49]} 16. Bf3 {[%clk 0:01:23]}  c6 {[%clk 0:01:49]} 17. Rfd1 {[%clk 0:01:12]}  Rhe8 {[%clk 0:01:47]} 18. Bxd4 {[%clk 0:01:07]}  Rxd4 {[%clk 0:01:48]} 19. Rxd4 {[%clk 0:01:06]}  Qxd4 {[%clk 0:01:49]} 20. Rd1 {[%clk 0:01:07]}  Qe5 {[%clk 0:01:35]} 21. h3 {[%clk 0:01:04]}  Re7 {[%clk 0:01:29]} 22. Qa4 {[%clk 0:01:02]}  Kb8 {[%clk 0:01:21]} 23. b4 {[%clk 0:00:53]}  Rd7 {[%clk 0:01:21]} 24. b5 {[%clk 0:00:36]}  cxb5 {[%clk 0:01:10]} 25. cxb5 {[%clk 0:00:37]}  Rxd1+ {[%clk 0:01:09]} 26. Qxd1 {[%clk 0:00:38]}  Kc7 {[%clk 0:00:44]} 27. a4 {[%clk 0:00:36]}  Be6 {[%clk 0:00:37]} 28. Qc1+ {[%clk 0:00:35]}  Kb8 {[%clk 0:00:35]} 29. Qc2 {[%clk 0:00:30]}  Bd5 {[%clk 0:00:28]} 30. Bxd5 {[%clk 0:00:26]}  Qxd5 {[%clk 0:00:29]} 31. Qxh7 {[%clk 0:00:26]}  Qd1+ {[%clk 0:00:29]} 32. Kh2 {[%clk 0:00:26]}  Qd6+ {[%clk 0:00:28]} 33. g3 {[%clk 0:00:26]}  Qf6 {[%clk 0:00:23]} 34. Qc2 {[%clk 0:00:24]}  Qf3 {[%clk 0:00:21]} 35. Qd2 {[%clk 0:00:21]}  Kc7 {[%clk 0:00:21]} 36. h4 {[%clk 0:00:21]}  b6 {[%clk 0:00:20]} 37. Kg1 {[%clk 0:00:19]}  g6 {[%clk 0:00:20]} 38. Qd4 {[%clk 0:00:17]}  Qf5 {[%clk 0:00:18]} 39. Kg2 {[%clk 0:00:17]}  Qe6 {[%clk 0:00:17]} 40. g4 {[%clk 0:00:16]}  Qb3 {[%clk 0:00:15]} 41. f3 {[%clk 0:00:15]}  Qe6 {[%clk 0:00:14]} 42. Kg3 {[%clk 0:00:16]}  Qe1+ {[%clk 0:00:14]} 43. Kf4 {[%clk 0:00:16]}  Qxh4 {[%clk 0:00:13]} 44. Qc4+ {[%clk 0:00:16]}  Kd8 {[%clk 0:00:13]} 45. Qxf7 {[%clk 0:00:16]}  Qh2+ {[%clk 0:00:13]} 46. Kg5 {[%clk 0:00:15]}  Qe5+ {[%clk 0:00:05]} 47. Kxg6 {[%clk 0:00:15]}  Qd4 {[%clk 0:00:05]} 48. Qf6+ {[%clk 0:00:15]} 1-0


[Site "https://www.chess.com"]

[Event "Titled Tuesday Blitz April 18 Late 2023"]
[White "Lewicki, Miroslaw"]
[Black "Sliwicki, Damian"]
[WhiteFideId "1113380"]
[BlackFideId "1127128"]
[WhiteElo "2212"]
[BlackElo "2030"]
[Result "1-0"]
[Round "09"]
[TimeControl "180+2"]
[Date "2023.04.18"]
[WhiteClock "0:00:29"]
[BlackClock "0:00:03"]

1. g3 {[%clk 0:03:00]}  c5 {[%clk 0:02:42]} 2. Bg2 {[%clk 0:03:01]}  Nc6 {[%clk 0:02:43]} 3. Nf3 {[%clk 0:03:01]}  e5 {[%clk 0:02:43]} 4. O-O {[%clk 0:03:02]}  d6 {[%clk 0:02:41]} 5. c4 {[%clk 0:03:01]}  g6 {[%clk 0:02:40]} 6. Nc3 {[%clk 0:03:01]}  Bg7 {[%clk 0:02:39]} 7. e3 {[%clk 0:03:01]}  Nge7 {[%clk 0:02:40]} 8. b3 {[%clk 0:03:01]}  O-O {[%clk 0:02:30]} 9. Bb2 {[%clk 0:03:01]}  Rb8 {[%clk 0:02:23]} 10. a3 {[%clk 0:02:57]}  a6 {[%clk 0:02:23]} 11. Qe2 {[%clk 0:02:56]}  b5 {[%clk 0:02:21]} 12. cxb5 {[%clk 0:02:55]}  axb5 {[%clk 0:02:21]} 13. Rfc1 {[%clk 0:02:39]}  b4 {[%clk 0:01:51]} 14. axb4 {[%clk 0:02:28]}  cxb4 {[%clk 0:01:25]} 15. Nd5 {[%clk 0:02:17]}  Nxd5 {[%clk 0:01:16]} 16. Rxc6 {[%clk 0:02:18]}  Bb7 {[%clk 0:00:51]} 17. Rc4 {[%clk 0:02:17]}  Nb6 {[%clk 0:00:29]} 18. Rxb4 {[%clk 0:02:15]}  Bxf3 {[%clk 0:00:27]} 19. Bxf3 {[%clk 0:01:40]}  e4 {[%clk 0:00:27]} 20. Bxg7 {[%clk 0:01:24]}  exf3 {[%clk 0:00:28]} 21. Qxf3 {[%clk 0:01:25]}  Kxg7 {[%clk 0:00:28]} 22. Ra6 {[%clk 0:01:26]}  Nd7 {[%clk 0:00:27]} 23. Qe4 {[%clk 0:01:20]}  Rxb4 {[%clk 0:00:26]} 24. Qxb4 {[%clk 0:01:21]}  Ne5 {[%clk 0:00:22]} 25. Rxd6 {[%clk 0:01:17]}  Nf3+ {[%clk 0:00:22]} 26. Kg2 {[%clk 0:01:16]}  Qa8 {[%clk 0:00:22]} 27. e4 {[%clk 0:01:13]}  Ng5 {[%clk 0:00:19]} 28. Qc3+ {[%clk 0:00:57]}  Kg8 {[%clk 0:00:18]} 29. f3 {[%clk 0:00:55]}  Rc8 {[%clk 0:00:16]} 30. Qe3 {[%clk 0:00:55]}  Ne6 {[%clk 0:00:15]} 31. h4 {[%clk 0:00:50]}  Rc1 {[%clk 0:00:15]} 32. h5 {[%clk 0:00:44]}  Qb8 {[%clk 0:00:15]} 33. Qd3 {[%clk 0:00:41]}  Kg7 {[%clk 0:00:11]} 34. Qd5 {[%clk 0:00:34]}  Qc7 {[%clk 0:00:06]} 35. Qe5+ {[%clk 0:00:31]}  Kg8 {[%clk 0:00:05]} 36. h6 {[%clk 0:00:30]}  Qc2 {[%clk 0:00:03]} 37. Rd8+ {[%clk 0:00:29]}  Nxd8 {[%clk 0:00:03]} 38. Qg7# {[%clk 0:00:29]} 1-0


[Site "https://www.chess.com"]

[Event "Titled Tuesday Blitz April 18 Late 2023"]
[White "Grigoriants, Sergey"]
[Black "Kubatko, Ivan"]
[WhiteFideId "4130804"]
[BlackFideId "24111473"]
[WhiteElo "2502"]
[BlackElo "2285"]
[Result "1-0"]
[Round "09"]
[TimeControl "180+2"]
[Date "2023.04.18"]
[WhiteClock "0:00:47"]
[BlackClock "0:00:02"]

1. d4 {[%clk 0:02:46]}  d5 {[%clk 0:02:59]} 2. c4 {[%clk 0:02:46]}  e6 {[%clk 0:03:00]} 3. Nc3 {[%clk 0:02:46]}  c5 {[%clk 0:03:00]} 4. cxd5 {[%clk 0:02:45]}  cxd4 {[%clk 0:03:00]} 5. Qa4+ {[%clk 0:02:43]}  Bd7 {[%clk 0:03:00]} 6. Qxd4 {[%clk 0:02:42]}  exd5 {[%clk 0:03:01]} 7. Qxd5 {[%clk 0:02:29]}  Nc6 {[%clk 0:03:00]} 8. Qd1 {[%clk 0:02:27]}  Nf6 {[%clk 0:02:59]} 9. e3 {[%clk 0:02:24]}  Bc5 {[%clk 0:02:59]} 10. a3 {[%clk 0:02:23]}  Qe7 {[%clk 0:02:57]} 11. Nf3 {[%clk 0:02:18]}  O-O-O {[%clk 0:02:57]} 12. Qc2 {[%clk 0:02:16]}  Kb8 {[%clk 0:02:56]} 13. Be2 {[%clk 0:02:16]}  g5 {[%clk 0:02:51]} 14. b4 {[%clk 0:01:56]}  Bb6 {[%clk 0:02:39]} 15. O-O {[%clk 0:01:53]}  g4 {[%clk 0:02:13]} 16. Nd2 {[%clk 0:01:49]}  h5 {[%clk 0:01:49]} 17. Nc4 {[%clk 0:01:45]}  h4 {[%clk 0:01:32]} 18. Nxb6 {[%clk 0:01:38]}  axb6 {[%clk 0:01:33]} 19. e4 {[%clk 0:01:26]}  Nh5 {[%clk 0:01:28]} 20. Nd5 {[%clk 0:01:22]}  Qd6 {[%clk 0:01:08]} 21. Be3 {[%clk 0:01:10]}  Rc8 {[%clk 0:00:51]} 22. Qb2 {[%clk 0:01:06]}  Rhg8 {[%clk 0:00:27]} 23. Rad1 {[%clk 0:01:02]}  Ne5 {[%clk 0:00:24]} 24. Nxb6 {[%clk 0:00:56]}  Nf3+ {[%clk 0:00:19]} 25. Bxf3 {[%clk 0:00:54]}  gxf3 {[%clk 0:00:07]} 26. Nxd7+ {[%clk 0:00:50]}  Qxd7 {[%clk 0:00:05]} 27. Rxd7 {[%clk 0:00:50]}  Rxg2+ {[%clk 0:00:05]} 28. Kh1 {[%clk 0:00:50]}  Ng3+ {[%clk 0:00:02]} 29. hxg3 {[%clk 0:00:46]}  hxg3 {[%clk 0:00:02]} 30. Qe5+ {[%clk 0:00:47]} 1-0


[Site "https://www.chess.com"]

[Event "Titled Tuesday Blitz April 18 Late 2023"]
[White "Al-Tarboush, Ward"]
[Black "Gonzalez Zamora, Juan Carlos"]
[WhiteFideId "7601450"]
[BlackFideId "3507548"]
[WhiteElo "2265"]
[BlackElo "2535"]
[Result "0-1"]
[Round "09"]
[TimeControl "180+2"]
[Date "2023.04.18"]
[WhiteClock "0:00:15"]
[BlackClock "0:00:05"]

1. e4 {[%clk 0:03:00]}  d6 {[%clk 0:02:58]} 2. d4 {[%clk 0:02:59]}  Nf6 {[%clk 0:02:58]} 3. Nc3 {[%clk 0:03:00]}  g6 {[%clk 0:02:59]} 4. Be3 {[%clk 0:02:59]}  Bg7 {[%clk 0:02:59]} 5. f3 {[%clk 0:02:58]}  a6 {[%clk 0:02:59]} 6. h4 {[%clk 0:02:58]}  h5 {[%clk 0:02:58]} 7. Nge2 {[%clk 0:02:56]}  b5 {[%clk 0:02:57]} 8. Nf4 {[%clk 0:02:56]}  Nbd7 {[%clk 0:02:49]} 9. g4 {[%clk 0:02:52]}  e5 {[%clk 0:02:41]} 10. dxe5 {[%clk 0:02:47]}  Nxe5 {[%clk 0:02:38]} 11. g5 {[%clk 0:02:45]}  Nfd7 {[%clk 0:02:37]} 12. Bg2 {[%clk 0:02:25]}  Bb7 {[%clk 0:02:35]} 13. Qe2 {[%clk 0:02:12]}  O-O {[%clk 0:02:34]} 14. O-O-O {[%clk 0:02:12]}  Re8 {[%clk 0:02:27]} 15. Kb1 {[%clk 0:02:09]}  Nc4 {[%clk 0:02:19]} 16. Nd3 {[%clk 0:02:06]}  Bxc3 {[%clk 0:02:12]} 17. bxc3 {[%clk 0:02:07]}  Nxe3 {[%clk 0:02:05]} 18. Qxe3 {[%clk 0:02:07]}  Nb6 {[%clk 0:02:06]} 19. Qd4 {[%clk 0:01:57]}  Na4 {[%clk 0:01:49]} 20. Ka1 {[%clk 0:01:47]}  c5 {[%clk 0:01:46]} 21. Qf6 {[%clk 0:01:47]}  Qxf6 {[%clk 0:01:45]} 22. gxf6 {[%clk 0:01:48]}  Nxc3 {[%clk 0:01:45]} 23. Rdg1 {[%clk 0:01:47]}  c4 {[%clk 0:01:39]} 24. Nf4 {[%clk 0:01:45]}  d5 {[%clk 0:01:34]} 25. Bh3 {[%clk 0:01:43]}  dxe4 {[%clk 0:01:30]} 26. fxe4 {[%clk 0:01:40]}  Bxe4 {[%clk 0:01:28]} 27. Rh2 {[%clk 0:01:39]}  Rad8 {[%clk 0:01:28]} 28. Nxh5 {[%clk 0:01:34]}  Rd1+ {[%clk 0:01:25]} 29. Rxd1 {[%clk 0:01:34]}  Nxd1 {[%clk 0:01:26]} 30. Nf4 {[%clk 0:01:32]}  Rd8 {[%clk 0:01:23]} 31. h5 {[%clk 0:01:20]}  g5 {[%clk 0:01:22]} 32. Ne2 {[%clk 0:00:56]}  Rd2 {[%clk 0:01:06]} 33. Bg4 {[%clk 0:00:30]}  Ne3 {[%clk 0:00:53]} 34. Bc8 {[%clk 0:00:29]}  c3 {[%clk 0:00:49]} 35. Nxc3 {[%clk 0:00:26]}  Rxh2 {[%clk 0:00:48]} 36. Nxe4 {[%clk 0:00:27]}  Nc4 {[%clk 0:00:38]} 37. a3 {[%clk 0:00:26]}  Nxa3 {[%clk 0:00:34]} 38. Nxg5 {[%clk 0:00:26]}  Nxc2+ {[%clk 0:00:30]} 39. Kb2 {[%clk 0:00:26]}  Nd4+ {[%clk 0:00:29]} 40. Kc3 {[%clk 0:00:26]}  Rc2+ {[%clk 0:00:27]} 41. Kxd4 {[%clk 0:00:25]}  Rxc8 {[%clk 0:00:27]} 42. h6 {[%clk 0:00:25]}  b4 {[%clk 0:00:11]} 43. h7+ {[%clk 0:00:25]}  Kh8 {[%clk 0:00:11]} 44. Nxf7+ {[%clk 0:00:23]}  Kxh7 {[%clk 0:00:11]} 45. Ne5 {[%clk 0:00:20]}  b3 {[%clk 0:00:10]} 46. Nd3 {[%clk 0:00:20]}  Kg6 {[%clk 0:00:07]} 47. Ke5 {[%clk 0:00:13]}  Rc3 {[%clk 0:00:05]} 48. Nf4+ {[%clk 0:00:14]}  Kf7 {[%clk 0:00:05]} 49. Ne6 {[%clk 0:00:15]}  Re3+ {[%clk 0:00:05]} 0-1


[Site "https://www.chess.com"]

[Event "Titled Tuesday Blitz April 18 Late 2023"]
[White "Hoffmann, Asa"]
[Black "Sonnenschein, Philipp"]
[WhiteFideId "2001470"]
[BlackFideId "16250877"]
[WhiteElo "2117"]
[BlackElo "2224"]
[Result "1-0"]
[Round "09"]
[TimeControl "180+2"]
[Date "2023.04.18"]
[WhiteClock "0:00:32"]
[BlackClock "0:00:01"]

1. d4 {[%clk 0:02:57]}  Nf6 {[%clk 0:02:58]} 2. Bg5 {[%clk 0:02:56]}  c5 {[%clk 0:02:58]} 3. d5 {[%clk 0:02:56]}  d6 {[%clk 0:02:56]} 4. Nc3 {[%clk 0:02:55]}  h6 {[%clk 0:02:56]} 5. Bh4 {[%clk 0:02:55]}  g6 {[%clk 0:02:56]} 6. e4 {[%clk 0:02:54]}  Bg7 {[%clk 0:02:56]} 7. f4 {[%clk 0:02:52]}  O-O {[%clk 0:02:49]} 8. Nf3 {[%clk 0:02:51]}  e6 {[%clk 0:02:39]} 9. dxe6 {[%clk 0:02:46]}  Bxe6 {[%clk 0:02:31]} 10. e5 {[%clk 0:02:43]}  Re8 {[%clk 0:01:42]} 11. exf6 {[%clk 0:02:36]}  Bxf6 {[%clk 0:01:39]} 12. Bxf6 {[%clk 0:02:30]}  Qxf6 {[%clk 0:01:40]} 13. Be2 {[%clk 0:02:10]}  Qxf4 {[%clk 0:01:14]} 14. Qd2 {[%clk 0:02:09]}  Qb4 {[%clk 0:01:04]} 15. O-O-O {[%clk 0:02:06]}  Kh7 {[%clk 0:00:59]} 16. Kb1 {[%clk 0:01:50]}  Nc6 {[%clk 0:00:52]} 17. Rhe1 {[%clk 0:01:38]}  Rad8 {[%clk 0:00:41]} 18. a3 {[%clk 0:01:37]}  Qg4 {[%clk 0:00:31]} 19. g3 {[%clk 0:01:26]}  b5 {[%clk 0:00:28]} 20. Nxb5 {[%clk 0:01:07]}  Rb8 {[%clk 0:00:26]} 21. Nxd6 {[%clk 0:01:02]}  Red8 {[%clk 0:00:26]} 22. Qf4 {[%clk 0:00:57]}  Qxf4 {[%clk 0:00:17]} 23. gxf4 {[%clk 0:00:57]}  Rb6 {[%clk 0:00:13]} 24. Ne5 {[%clk 0:00:54]}  Rdb8 {[%clk 0:00:12]} 25. Nxc6 {[%clk 0:00:40]}  Rxc6 {[%clk 0:00:11]} 26. Kc1 {[%clk 0:00:35]}  Rcb6 {[%clk 0:00:09]} 27. b3 {[%clk 0:00:34]}  a5 {[%clk 0:00:07]} 28. Bc4 {[%clk 0:00:34]}  Bg4 {[%clk 0:00:04]} 29. Rd3 {[%clk 0:00:33]}  Kg7 {[%clk 0:00:01]} 30. Nxf7 {[%clk 0:00:32]} 1-0


[Site "https://www.chess.com"]